fUSD/lending_fUSD_20250117
["ID","MTS","AMOUNT","RATE_DAILY","PERIOD"]
[349381146,1737143484743,-1087.3,0.00023199,2]
[349381147,1737143484755,-1087.3,0.00023199,2]
[349381148,1737143484765,-1087.3,0.00023199,2]
[349381149,1737143484774,-1087.50318867,0.00023199,2]
[349381150,1737143484783,-720.38,0.00023199,2]
[349381151,1737143484792,-720.38,0.00023199,2]
[349381152,1737143484801,-720.38,0.00023199,2]
[349381153,1737143484810,-720.38,0.00023199,2]
[349381154,1737143484819,-720.38,0.00023199,2]
[349381155,1737143484828,-720.38,0.00023199,2]
[349381156,1737143484837,-720.38,0.00023199,2]
[349381157,1737143484846,-720.38,0.00023199,2]
[349381158,1737143484856,-720.38,0.00023199,2]
[349381159,1737143484865,-720.39611702,0.00023199,2]
[349381160,1737143484874,-1284.78,0.00023199,2]
[349381161,1737143484883,-1473.35,0.00023199,2]
[349381162,1737143484892,-1473.35,0.00023199,2]
[349381163,1737143484901,-1473.35,0.00023199,2]
[349381164,1737143484911,-1284.78,0.00023199,2]
[349381165,1737143484920,-1473.35,0.00023199,2]
[349381166,1737143484929,-1284.78,0.00023199,2]
[349381167,1737143484938,-1473.35,0.00023199,2]
[349381168,1737143484948,-1284.78,0.00023199,2]
[349381169,1737143484957,-1473.35,0.00023199,2]
[349381170,1737143484966,-1284.78,0.00023199,2]
[349381171,1737143484975,-1284.78,0.00023199,2]
[349381172,1737143484984,-1473.35,0.00023199,2]
[349381173,1737143484993,-1473.35,0.00023199,2]
[349381174,1737143485003,-1284.78,0.00023199,2]
[349381175,1737143485012,-1473.35,0.00023199,2]
[349381176,1737143485021,-1284.78,0.00023199,2]
[349381177,1737143485030,-1284.78,0.00023199,2]
[349381178,1737143485039,-1284.78,0.00023199,2]
[349381179,1737143485048,-1473.4732016,0.00023199,2]
[349381180,1737143485057,-1284.78,0.00023199,2]
[349381181,1737143485067,-1284.78,0.00023199,2]
[349381182,1737143485076,-1284.78,0.00023199,2]
[349381183,1737143485086,-1284.97182508,0.00023199,2]
[349381184,1737143485095,-500.0,0.00023199,2]
[349381185,1737143485105,-500.0,0.00023199,2]
[349381186,1737143485115,-500.0,0.00023199,2]
[349381187,1737143485125,-500.0,0.00023199,2]
[349381188,1737143485135,-500.0,0.00023199,2]
[349381189,1737143485145,-404.93502502,0.00023199,2]
[349381190,1737143485157,-500.0,0.00023199,2]
[349381191,1737143485166,-500.0,0.00023199,2]
[349381192,1737143485177,-500.0,0.00023199,2]
[349381193,1737143485187,-500.0,0.00023199,2]
[349381194,1737143485197,-500.0,0.00023199,2]
[349381195,1737143485206,-633.66,0.00023199,2]
[349381196,1737143485216,-633.66,0.00023199,2]
[349381197,1737143485225,-500.0,0.00023199,2]
[349381198,1737143485234,-633.66,0.00023199,2]
[349381199,1737143485245,-500.0,0.00023199,2]
[349381200,1737143485254,-633.66,0.00023199,2]
[349381201,1737143485263,-500.0,0.00023199,2]
[349381202,1737143485272,-633.88921812,0.00023199,2]
[349381203,1737143485282,-500.0,0.00023199,2]
[349381204,1737143485292,-500.0,0.00023199,2]
[349381205,1737143485301,-622.19,0.00023199,2]
[349381206,1737143485311,-906.42,0.00023199,2]
[349381207,1737143485321,-906.42,0.00023199,2]
[349381208,1737143485333,-906.42,0.00023199,2]
[349381209,1737143485343,-906.42,0.00023199,2]
[349381210,1737143485353,-906.42,0.00023199,2]
[349381211,1737143485363,-906.42,0.00023199,2]
[349381212,1737143485372,-906.42,0.00023199,2]
[349381213,1737143485382,-906.42,0.00023199,2]
[349381214,1737143485392,-906.42,0.00023199,2]
[349381215,1737143485401,-906.42,0.00023199,2]
[349381216,1737143485410,-906.42,0.00023199,2]
[349381217,1737143485421,-906.44,0.00023199,2]
[349381218,1737143485430,-1804.85,0.00023199,2]
[349381219,1737143485439,-1804.85,0.00023199,2]
[349381220,1737143485448,-1804.85,0.00023199,2]
[349381221,1737143485458,-1804.85,0.00023199,2]
[349381222,1737143485468,-1804.85,0.00023199,2]
[349381223,1737143485478,-1804.85,0.00023199,2]
[349381224,1737143485487,-1804.85,0.00023199,2]
[349381225,1737143485498,-1804.85,0.00023199,2]
[349381226,1737143485508,-1804.85,0.00023199,2]
[349381227,1737143485518,-929.28,0.00023199,2]
[349381228,1737143485527,-1804.85,0.00023199,2]
[349381229,1737143485537,-929.28,0.00023199,2]
[349381230,1737143485547,-1804.85,0.00023199,2]
[349381231,1737143485556,-929.28,0.00023199,2]
[349381232,1737143485566,-1804.85,0.00023199,2]
[349381233,1737143485575,-929.28,0.00023199,2]
[349381234,1737143485585,-1804.85,0.00023199,2]
[349381235,1737143485595,-873.42,0.00023199,2]
[349381236,1737143485604,-929.28,0.00023199,2]
[349381237,1737143485613,-1805.05,0.00023199,2]
[349381238,1737143485623,-873.42,0.00023199,2]
[349381239,1737143485633,-929.28,0.00023199,2]
[349381240,1737143485642,-873.42,0.00023199,2]
[349381241,1737143485652,-929.28,0.00023199,2]
[349381242,1737143485662,-873.42,0.00023199,2]
[349381243,1737143485672,-929.28,0.00023199,2]
[349381244,1737143485681,-873.42,0.00023199,2]
[349381245,1737143485691,-929.28,0.00023199,2]
[349381246,1737143485700,-873.42,0.00023199,2]
[349381247,1737143485710,-929.28,0.00023199,2]
[349381248,1737143485719,-873.42,0.00023199,2]
[349381249,1737143485728,-929.34506761,0.00023199,2]
[349381250,1737143485737,-873.42,0.00023199,2]
[349381251,1737143485747,-873.42,0.00023199,2]
[349381252,1737143485756,-873.42,0.00023199,2]
[349381253,1737143485765,-873.42,0.00023199,2]
[349381254,1737143485775,-873.52778638,0.00023199,2]
[349381255,1737143485785,-1058.51,0.00023199,2]
[349381256,1737143485794,-1058.51,0.00023199,2]
[349381257,1737143485804,-1058.51,0.00023199,2]
[349381258,1737143485814,-1058.51,0.00023199,2]
[349381259,1737143485823,-1058.51,0.00023199,2]
[349381260,1737143485833,-1058.51,0.00023199,2]
[349381261,1737143485842,-1058.51,0.00023199,2]
[349381262,1737143485851,-1058.51,0.00023199,2]
[349381263,1737143485860,-1058.51,0.00023199,2]
[349381264,1737143485869,-1058.61222761,0.00023199,2]
[349381265,1737143485878,-514.92,0.00023199,2]
[349381266,1737143485887,-514.92,0.00023199,2]
[349381267,1737143485897,-514.92,0.00023199,2]
[349381268,1737143485906,-514.92,0.00023199,2]
[349381269,1737143485915,-514.92,0.00023199,2]
[349381270,1737143485926,-514.92,0.00023199,2]
[349381271,1737143485935,-514.92,0.00023199,2]
[349381272,1737143485945,-514.92,0.00023199,2]
[349381273,1737143485954,-514.92,0.00023199,2]
[349381274,1737143485964,-514.92,0.00023199,2]
[349381275,1737143485973,-515.0939061,0.00023199,2]
[349381276,1737143485982,-1735.73,0.00023199,2]
[349381277,1737143485991,-1735.73,0.00023199,2]
[349381278,1737143486000,-1735.73,0.00023199,2]
[349381279,1737143486009,-1735.73,0.00023199,2]
[349381280,1737143486018,-1735.73,0.00023199,2]
[349381281,1737143486027,-1350.11,0.00023199,2]
[349381282,1737143486037,-1350.11,0.00023199,2]
[349381283,1737143486046,-1350.11,0.00023199,2]
[349381284,1737143486055,-1350.11,0.00023199,2]
[349381285,1737143486064,-1350.11,0.00023199,2]
[349381286,1737143486073,-1350.11,0.00023199,2]
[349381287,1737143486082,-1350.11,0.00023199,2]
[349381288,1737143486091,-1350.11,0.00023199,2]
[349381289,1737143486101,-1350.11,0.00023199,2]
[349381290,1737143486110,-1350.11,0.00023199,2]
[349381291,1737143486120,-1350.11,0.00023199,2]
[349381292,1737143486129,-500.0,0.00023199,2]
[349381293,1737143486138,-1350.24,0.00023199,2]
[349381294,1737143486148,-500.0,0.00023199,2]
[349381295,1737143486157,-640.36,0.00023199,2]
[349381296,1737143486167,-1322.92,0.00023199,2]
[349381297,1737143486177,-1322.92,0.00023199,2]
[349381298,1737143486186,-1322.92,0.00023199,2]
[349381299,1737143486196,-1322.92,0.00023199,2]
[349381300,1737143486205,-1322.92,0.00023199,2]
[349381301,1737143486214,-1322.92,0.00023199,2]
[349381302,1737143486223,-1322.92,0.00023199,2]
[349381303,1737143486232,-1322.92,0.00023199,2]
[349381304,1737143486242,-1322.92,0.00023199,2]
[349381305,1737143486252,-1322.92,0.00023199,2]
[349381306,1737143486261,-1323.02250814,0.00023199,2]
[349381307,1737143486271,-902.65,0.00023199,2]
[349381308,1737143486280,-902.65,0.00023199,2]
[349381309,1737143486289,-902.65,0.00023199,2]
[349381310,1737143486298,-902.65,0.00023199,2]
[349381311,1737143486307,-902.65,0.00023199,2]
[349381312,1737143486317,-902.65,0.00023199,2]
[349381313,1737143486329,-902.65,0.00023199,2]
[349381314,1737143486338,-902.65,0.00023199,2]
[349381315,1737143486347,-902.65,0.00023199,2]
[349381316,1737143486356,-902.65,0.00023199,2]
[349381317,1737143486366,-902.65,0.00023199,2]
[349381318,1737143486375,-500.0,0.00023199,2]
[349381319,1737143486385,-902.72,0.00023199,2]
[349381320,1737143486395,-520.92,0.00023199,2]
[349381321,1737143486404,-650.4,0.00023199,2]
[349381322,1737143486415,-650.4,0.00023199,2]
[349381323,1737143486425,-650.4,0.00023199,2]
[349381324,1737143486435,-650.4,0.00023199,2]
[349381325,1737143486444,-650.4,0.00023199,2]
[349381326,1737143486453,-650.4,0.00023199,2]
[349381327,1737143486463,-650.4,0.00023199,2]
[349381328,1737143486473,-650.4,0.00023199,2]
[349381329,1737143486482,-1785.15,0.00023199,2]
[349381330,1737143486492,-650.41,0.00023199,2]
[349381331,1737143486503,-1785.15,0.00023199,2]
[349381332,1737143486512,-1785.15,0.00023199,2]
[349381333,1737143486522,-1785.15,0.00023199,2]
[349381334,1737143486531,-1785.15,0.00023199,2]
[349381335,1737143486541,-1785.15,0.00023199,2]
[349381336,1737143486550,-1785.15,0.00023199,2]
[349381337,1737143486559,-1785.15,0.00023199,2]
[349381338,1737143486568,-1785.15,0.00023199,2]
[349381339,1737143486578,-1785.15,0.00023199,2]
[349381340,1737143486587,-1785.15,0.00023199,2]
[349381341,1737143486597,-1785.36,0.00023199,2]
[349381342,1737143486606,-913.65,0.00023199,2]
[349381343,1737143486616,-913.65,0.00023199,2]
[349381344,1737143486627,-913.65,0.00023199,2]
[349381345,1737143486637,-913.65,0.00023199,2]
[349381346,1737143486647,-913.65,0.00023199,2]
[349381347,1737143486657,-483.57,0.00023199,2]
[349381348,1737143486667,-913.65,0.00023199,2]
[349381349,1737143486678,-913.65,0.00023199,2]
[349381350,1737143486687,-913.65,0.00023199,2]
[349381351,1737143486697,-913.65,0.00023199,2]
[349381352,1737143486706,-913.65,0.00023199,2]
[349381353,1737143486715,-913.75932723,0.00023199,2]
[349381354,1737143486724,-2021.36,0.00023199,2]
[349381355,1737143486734,-2021.36,0.00023199,2]
[349381356,1737143486743,-2021.36,0.00023199,2]
[349381357,1737143486753,-2021.36,0.00023199,2]
[349381358,1737143486763,-500.0,0.00023199,2]
[349381359,1737143486772,-2021.36,0.00023199,2]
[349381360,1737143486781,-2021.36,0.00023199,2]
[349381361,1737143486791,-590.55,0.00023199,2]
[349381362,1737143486800,-2021.36,0.00023199,2]
[349381363,1737143486810,-2021.36,0.00023199,2]
[349381364,1737143486820,-2021.50404743,0.00023199,2]
[349381365,1737143486829,-983.11,0.00023199,2]
[349381366,1737143486839,-983.11,0.00023199,2]
[349381367,1737143486848,-983.11,0.00023199,2]
[349381368,1737143486858,-983.11,0.00023199,2]
[349381369,1737143486868,-983.23,0.00023199,2]
[349381370,1737143486878,-504.14,0.00023199,2]
[349381371,1737143486887,-504.14,0.00023199,2]
[349381372,1737143486896,-504.14,0.00023199,2]
[349381373,1737143486906,-504.14,0.00023199,2]
[349381374,1737143486915,-504.14,0.00023199,2]
[349381375,1737143486926,-1332.81,0.00023199,2]
[349381376,1737143486937,-1332.81,0.00023199,2]
[349381377,1737143486946,-1332.81,0.00023199,2]
[349381378,1737143486956,-1332.81,0.00023199,2]
[349381379,1737143486966,-1332.81,0.00023199,2]
[349381380,1737143486976,-1332.81,0.00023199,2]
[349381381,1737143486985,-504.14,0.00023199,2]
[349381382,1737143486995,-1332.81,0.00023199,2]
[349381383,1737143487004,-1210.49,0.00023199,2]
[349381384,1737143487013,-504.14,0.00023199,2]
[349381385,1737143487024,-1210.49,0.00023199,2]
[349381386,1737143487034,-504.14,0.00023199,2]
[349381387,1737143487044,-504.14,0.00023199,2]
[349381388,1737143487055,-1210.49,0.00023199,2]
[349381389,1737143487065,-1332.81,0.00023199,2]
[349381390,1737143487076,-1210.49,0.00023199,2]
[349381391,1737143487086,-504.14,0.00023199,2]
[349381392,1737143487096,-1332.81,0.00023199,2]
[349381393,1737143487106,-1210.49,0.00023199,2]
[349381394,1737143487116,-1332.81,0.00023199,2]
[349381395,1737143487126,-504.1536091,0.00023199,2]
[349381396,1737143487135,-1210.49,0.00023199,2]
[349381397,1737143487145,-1332.81,0.00023199,2]
[349381398,1737143487155,-1210.49,0.00023199,2]
[349381399,1737143487165,-1210.49,0.00023199,2]
[349381400,1737143487176,-1332.99,0.00023199,2]
[349381401,1737143487186,-1210.49,0.00023199,2]
[349381402,1737143487195,-1210.49,0.00023199,2]
[349381403,1737143487204,-1210.49,0.00023199,2]
[349381404,1737143487214,-1210.63304456,0.00023199,2]
[349381405,1737143487223,-577.93,0.00023199,2]
[349381406,1737143487232,-577.93,0.00023199,2]
[349381407,1737143487242,-577.93,0.00023199,2]
[349381408,1737143487251,-577.93,0.00023199,2]
[349381409,1737143487261,-578.04,0.00023199,2]
[349381410,1737143487271,-1928.33,0.00023199,2]
[349381411,1737143487280,-1928.33,0.00023199,2]
[349381412,1737143487290,-1928.33,0.00023199,2]
[349381413,1737143487299,-1928.33,0.00023199,2]
[349381414,1737143487308,-1928.33,0.00023199,2]
[349381415,1737143487318,-1928.33,0.00023199,2]
[349381416,1737143487330,-1928.33,0.00023199,2]
[349381417,1737143487340,-1928.33,0.00023199,2]
[349381418,1737143487348,-1928.33,0.00023199,2]
[349381419,1737143487358,-1928.33,0.00023199,2]
[349381420,1737143487367,-1928.33,0.00023199,2]
[349381421,1737143487377,-1928.51,0.00023199,2]
[349381422,1737143487387,-597.5,0.00023199,2]
[349381423,1737143487396,-597.5,0.00023199,2]
[349381424,1737143487407,-597.5,0.00023199,2]
[349381425,1737143487417,-597.5,0.00023199,2]
[349381426,1737143487428,-743.14,0.00023199,2]
[349381427,1737143487437,-743.14,0.00023199,2]
[349381428,1737143487447,-597.5,0.00023199,2]
[349381429,1737143487457,-743.14,0.00023199,2]
[349381430,1737143487467,-597.5,0.00023199,2]
[349381431,1737143487476,-743.14,0.00023199,2]
[349381432,1737143487486,-597.5,0.00023199,2]
[349381433,1737143487496,-743.30496305,0.00023199,2]
[349381434,1737143487506,-597.5,0.00023199,2]
[349381435,1737143487515,-597.5,0.00023199,2]
[349381436,1737143487524,-597.5,0.00023199,2]
[349381437,1737143487534,-597.58,0.00023199,2]
[349381438,1737143487543,-500.0,0.00023199,2]
[349381439,1737143487552,-500.0,0.00023199,2]
[349381440,1737143487562,-500.0,0.00023199,2]
[349381441,1737143487571,-500.0,0.00023199,2]
[349381442,1737143487581,-500.0,0.00023199,2]
[349381443,1737143487719,-500.0,0.00023199,2]
[349381444,1737143487728,-500.0,0.00023199,2]
[349381445,1737143487738,-500.0,0.00023199,2]
[349381446,1737143487747,-500.0,0.00023199,2]
[349381447,1737143487757,-363.73002463,0.00023199,2]
[349381448,1737143487766,-500.0,0.00023199,2]
[349381449,1737143487775,-500.0,0.00023199,2]
[349381450,1737143487784,-500.0,0.00023199,2]
[349381451,1737143487794,-500.0,0.00023199,2]
[349381452,1737143487803,-500.0,0.00023199,2]
[349381453,1737143487812,-500.0,0.00023199,2]
[349381454,1737143487822,-247.90744867,0.00023199,2]
[349381455,1737143487831,-500.0,0.00023199,2]
[349381456,1737143487840,-500.0,0.00023199,2]
[349381457,1737143487850,-500.0,0.00023199,2]
[349381458,1737143487859,-592.38127525,0.00023199,2]
[349381459,1737143487868,-709.44,0.00023199,2]
[349381460,1737143487878,-709.44,0.00023199,2]
[349381461,1737143487887,-709.44,0.00023199,2]
[349381462,1737143487896,-709.44,0.00023199,2]
[349381463,1737143487906,-709.44,0.00023199,2]
[349381464,1737143487915,-709.44,0.00023199,2]
[349381465,1737143487926,-709.44,0.00023199,2]
[349381466,1737143487936,-709.44,0.00023199,2]
[349381467,1737143487945,-709.44,0.00023199,2]
[349381468,1737143487955,-709.44,0.00023199,2]
[349381469,1737143487966,-709.44,0.00023199,2]
[349381470,1737143487975,-709.49625696,0.00023199,2]
[349381471,1737143487985,-500.0,0.00023199,2]
[349381472,1737143487995,-505.04,0.00023199,2]
[349381473,1737143488004,-1260.73,0.00023199,2]
[349381474,1737143488014,-1260.73,0.00023199,2]
[349381475,1737143488023,-1260.73,0.00023199,2]
[349381476,1737143488033,-1260.73,0.00023199,2]
[349381477,1737143488042,-1260.73,0.00023199,2]
[349381478,1737143488051,-1260.73,0.00023199,2]
[349381479,1737143488061,-1260.73,0.00023199,2]
[349381480,1737143488071,-1260.73,0.00023199,2]
[349381481,1737143488080,-1260.73443525,0.00023199,2]
[349381482,1737143488089,-500.0,0.00023199,2]
[349381483,1737143488099,-500.0,0.00023199,2]
[349381484,1737143488108,-500.0,0.00023199,2]
[349381485,1737143488117,-500.0,0.00023199,2]
[349381486,1737143488127,-339.27,0.00023199,2]
[349381487,1737143488136,-612.39,0.00023199,2]
[349381488,1737143488146,-612.39,0.00023199,2]
[349381489,1737143488156,-612.39,0.00023199,2]
[349381490,1737143488165,-612.39,0.00023199,2]
[349381491,1737143488174,-612.39,0.00023199,2]
[349381492,1737143488184,-612.39,0.00023199,2]
[349381493,1737143488193,-612.39,0.00023199,2]
[349381494,1737143488202,-612.39,0.00023199,2]
[349381495,1737143488211,-612.61336648,0.00023199,2]
[349381496,1737143488221,-1191.53,0.00023199,2]
[349381497,1737143488230,-1191.53,0.00023199,2]
[349381498,1737143488240,-1191.53,0.00023199,2]
[349381499,1737143488249,-1191.53,0.00023199,2]
[349381500,1737143488259,-1191.53,0.00023199,2]
[349381501,1737143488270,-1191.53,0.00023199,2]
[349381502,1737143488279,-1191.53,0.00023199,2]
[349381503,1737143488288,-1191.53,0.00023199,2]
[349381504,1737143488297,-1191.53,0.00023199,2]
[349381505,1737143488307,-1191.53,0.00023199,2]
[349381506,1737143488315,-1191.53,0.00023199,2]
[349381507,1737143488328,-1191.59,0.00023199,2]
[349381508,1737143488338,-500.0,0.00023199,2]
[349381509,1737143488348,-500.0,0.00023199,2]
[349381510,1737143488359,-500.0,0.00023199,2]
[349381511,1737143488369,-500.0,0.00023199,2]
[349381512,1737143488378,-500.0,0.00023199,2]
[349381513,1737143488387,-1096.61,0.00023199,2]
[349381514,1737143488396,-500.0,0.00023199,2]
[349381515,1737143488408,-1096.61,0.00023199,2]
[349381516,1737143488417,-500.0,0.00023199,2]
[349381517,1737143488427,-1096.61,0.00023199,2]
[349381518,1737143488436,-529.56,0.00023199,2]
[349381519,1737143488445,-1096.61,0.00023199,2]
[349381520,1737143488454,-1096.61,0.00023199,2]
[349381521,1737143488463,-1096.61,0.00023199,2]
[349381522,1737143488472,-1096.61,0.00023199,2]
[349381523,1737143488481,-1096.61,0.00023199,2]
[349381524,1737143488490,-1096.61,0.00023199,2]
[349381525,1737143488500,-1096.84140046,0.00023199,2]
[349381526,1737143488509,-595.56,0.00023199,2]
[349381527,1737143488519,-595.56,0.00023199,2]
[349381528,1737143488528,-595.56,0.00023199,2]
[349381529,1737143488537,-595.56,0.00023199,2]
[349381530,1737143488546,-595.56,0.00023199,2]
[349381531,1737143488556,-595.56,0.00023199,2]
[349381532,1737143488566,-595.56,0.00023199,2]
[349381533,1737143488575,-595.56,0.00023199,2]
[349381534,1737143488584,-1382.36,0.00023199,2]
[349381535,1737143488593,-595.77401284,0.00023199,2]
[349381536,1737143488602,-1382.36,0.00023199,2]
[349381537,1737143488611,-1382.36,0.00023199,2]
[349381538,1737143488620,-1382.36,0.00023199,2]
[349381539,1737143488629,-500.0,0.00023199,2]
[349381540,1737143488638,-1382.36,0.00023199,2]
[349381541,1737143488647,-500.0,0.00023199,2]
[349381542,1737143488657,-1382.36,0.00023199,2]
[349381543,1737143488666,-500.0,0.00023199,2]
[349381544,1737143488676,-1382.36,0.00023199,2]
[349381545,1737143488685,-500.0,0.00023199,2]
[349381546,1737143488695,-500.0,0.00023199,2]
[349381547,1737143488704,-1382.36,0.00023199,2]
[349381548,1737143488714,-238.44337037,0.00023199,2]
[349381549,1737143488723,-1382.36,0.00023199,2]
[349381550,1737143488732,-1382.36,0.00023199,2]
[349381551,1737143488742,-1382.36,0.00023199,2]
[349381552,1737143488751,-1382.42542312,0.00023199,2]
[349381553,1737143488761,-1040.01,0.00023199,2]
[349381554,1737143488770,-1040.01,0.00023199,2]
[349381555,1737143488781,-1040.01,0.00023199,2]
[349381556,1737143488790,-1040.01,0.00023199,2]
[349381557,1737143488799,-1040.01,0.00023199,2]
[349381558,1737143488808,-1040.01,0.00023199,2]
[349381559,1737143488818,-1040.01,0.00023199,2]
[349381560,1737143488827,-500.0,0.00023199,2]
[349381561,1737143488836,-1040.01,0.00023199,2]
[349381562,1737143488845,-967.79,0.00023199,2]
[349381563,1737143488854,-500.0,0.00023199,2]
[349381564,1737143488864,-1040.0217186,0.00023199,2]
[349381565,1737143488873,-967.79,0.00023199,2]
[349381566,1737143488882,-967.79,0.00023199,2]
[349381567,1737143488891,-500.0,0.00023199,2]
[349381568,1737143488900,-500.0,0.00023199,2]
[349381569,1737143488909,-967.79,0.00023199,2]
[349381570,1737143488919,-500.0,0.00023199,2]
[349381571,1737143488928,-967.79,0.00023199,2]
[349381572,1737143488937,-500.0,0.00023199,2]
[349381573,1737143488947,-967.79,0.00023199,2]
[349381574,1737143488956,-176.99,0.00023199,2]
[349381575,1737143488965,-967.79,0.00023199,2]
[349381576,1737143488975,-967.79,0.00023199,2]
[349381577,1737143488985,-967.79,0.00023199,2]
[349381578,1737143488994,-967.85,0.00023199,2]
[349381579,1737143489003,-151.359,0.000232,2]
[349381580,1737143489013,-1288.759,0.000232,2]
[349381581,1737143489023,-2017.115,0.000232,2]
[349381582,1737143489032,-569.29,0.000232,2]
[349381583,1737143489041,-212.66,0.000232,2]
[349381584,1737143489050,-260.549,0.000232,2]
[349381585,1737143489060,-635.0,0.000232,2]
[349381586,1737143489069,-1862.0,0.000232,2]
[349381587,1737143489078,-907.0,0.000232,2]
[349381588,1737143489088,-820.0,0.000232,2]
[349381589,1737143489097,-1260.0,0.000232,2]
[349381590,1737143489106,-2945.0,0.000232,2]
[349381591,1737143489115,-150.0,0.000232,2]
[349381592,1737143489124,-3981.0,0.000232,2]
[349381593,1737143489133,-537.0,0.000232,2]
[349381594,1737143489142,-250.0,0.000232,2]
[349381595,1737143489152,-168.0,0.000232,2]
[349381596,1737143489161,-3899.0,0.000232,2]
[349381597,1737143489170,-163.091,0.000232,2]
[349381598,1737143489179,-1174.0,0.000232,2]
[349381599,1737143489188,-158.208,0.000232,2]
[349381600,1737143489197,-150.0,0.000232,2]
[349381601,1737143489207,-150.0,0.000232,2]
[349381602,1737143489216,-174495.85263552,0.000232,2]
[349381603,1737143489267,-3313.2047406,0.000232,2]
[349381604,1737143489279,-3584.80000002,0.000232,2]
[349381605,1737143489291,-1033.90301804,0.000232,2]
[349381606,1737143489305,-4077.98631362,0.000232,2]
[349381607,1737143489316,-29717.53930283,0.000232,2]
[349381608,1737143489330,-33052.07865688,0.000232,2]
[349381609,1737143489341,-1395.71527919,0.000232,2]
[349381610,1737143489352,-1170.0,0.000232,2]
[349381611,1737143489363,-4906.62420437,0.000232,2]
[349381612,1737143489375,-597.04856955,0.000232,2]
[349381613,1737143489522,-500.0,0.00021917,2]
[349381614,1737143489531,-348.34305106,0.000232,2]
[349381615,1737143489542,-756.65694894,0.000232,2]
[349381616,1737143489552,-150.448,0.000232,2]
[349381617,1737143489561,-179.071,0.000232,2]
[349381618,1737143489570,-7401.7250497,0.000232,2]
[349381619,1737143489581,-521.56177382,0.000232,2]
[349381620,1737143489627,-1053.0,0.000232,2]
[349381621,1737143489638,-348.95445286,0.000232,2]
[349381622,1737143489650,-2368.97429585,0.000232,2]
[349381623,1737143489662,-350.0,0.000232,2]
[349381624,1737143489677,-1608.65504037,0.000232,2]
[349381625,1737143489688,-3409.45293,0.000232,2]
[349381626,1737143489699,-6991.20000002,0.000232,2]
[349381627,1737143489711,-217844.70627319,0.000232,2]
[349381628,1737143489726,-24029.49899896,0.000232,2]
[349381629,1737143489737,-557.6099985,0.000232,2]
[349381630,1737143489749,-4611.31513577,0.000232,2]
[349381635,1737144410140,521336.0,0.000245,30]
[349381636,1737144452138,-188.34,0.00010137,2]
[349381637,1737144452161,-1484.63545245,0.00012229,2]
[349381644,1737144553104,-219.58,0.00012329,2]
[349381645,1737144553125,-500.0,0.0001355,2]
[349381646,1737144553145,-167.07,0.00016712,2]
[349381647,1737144553167,-188.34,0.00016813,2]
[349381648,1737144553187,-915.44,0.00018654,2]
[349381649,1737144556397,4024.4576915,0.0001345,2]
[349381650,1737144565089,-4304.476344,0.0001345,2]
[349381656,1737144631796,-214.94834759,0.000199,2]
[349381657,1737144631805,-585.05165241,0.00020068,2]
[349381658,1737144631857,-2626.16375848,0.00020068,2]
[349381659,1737144631867,-500.0,0.00020068,2]
[349381660,1737144631878,-500.0,0.00020068,2]